[Event "*** SCC Grand Prix: Titled Tuesday Blitz"]
[Site "Chess.com"]
[Date "2020.07.21"]
[Round "4"]
[White "RestartingChess"]
[Black "fighter2jz"]
[Result "0-1"]
[WhiteElo "2524"]
[BlackElo "2810"]
[TimeControl "180+1"]
[EndTime "10:39:20 PDT"]
[Termination "fighter2jz won by checkmate"]

1. e4 {[%clk 0:03:00.9]} 1... c5 {[%clk 0:02:58.2]} 2. Nf3 {[%clk 0:03:01.3]}
2... d6 {[%clk 0:02:58.5]} 3. Bb5+ {[%clk 0:03:01.3]} 3... Nd7 {[%clk
0:02:57.8]} 4. c4 {[%clk 0:03:02.2]} 4... Nf6 {[%clk 0:02:57]} 5. Nc3 {[%clk
0:03:02.7]} 5... g6 {[%clk 0:02:55.2]} 6. d3 {[%clk 0:03:03.2]} 6... Bg7 {[%clk
0:02:55]} 7. h3 {[%clk 0:03:04]} 7... O-O {[%clk 0:02:54.6]} 8. Be3 {[%clk
0:03:04.7]} 8... Nb6 {[%clk 0:02:52.8]} 9. O-O {[%clk 0:02:59.7]} 9... a6 {[%clk
0:02:51.8]} 10. Ba4 {[%clk 0:03:00.2]} 10... Nxa4 {[%clk 0:02:52.5]} 11. Nxa4
{[%clk 0:03:01.1]} 11... b5 {[%clk 0:02:52.1]} 12. cxb5 {[%clk 0:03:01.6]} 12...
axb5 {[%clk 0:02:52.2]} 13. Nc3 {[%clk 0:03:02.5]} 13... b4 {[%clk 0:02:52.4]}
14. Ne2 {[%clk 0:03:02.9]} 14... Bb7 {[%clk 0:02:44.9]} 15. Qd2 {[%clk
0:03:02.2]} 15... Re8 {[%clk 0:02:43.7]} 16. a3 {[%clk 0:02:54.4]} 16... Ra4
{[%clk 0:02:21.4]} 17. axb4 {[%clk 0:02:28.5]} 17... Rxb4 {[%clk 0:02:19.8]} 18.
Ra2 {[%clk 0:02:22.9]} 18... Qd7 {[%clk 0:02:13.2]} 19. Rfa1 {[%clk 0:02:14.7]}
19... Bc6 {[%clk 0:02:08.2]} 20. Ra7 {[%clk 0:02:04.8]} 20... Rb7 {[%clk
0:02:07.3]} 21. Rxb7 {[%clk 0:01:43.1]} 21... Qxb7 {[%clk 0:02:08.2]} 22. Rb1
{[%clk 0:01:43.8]} 22... Rb8 {[%clk 0:02:05.8]} 23. Nc3 {[%clk 0:01:34.3]} 23...
Nd7 {[%clk 0:01:51.6]} 24. Qc2 {[%clk 0:01:19.2]} 24... Qb3 {[%clk 0:01:44.7]}
25. Qxb3 {[%clk 0:01:10.8]} 25... Rxb3 {[%clk 0:01:45.6]} 26. Bd2 {[%clk
0:01:11.6]} 26... h6 {[%clk 0:01:36.4]} 27. Kf1 {[%clk 0:01:11]} 27... Nb8
{[%clk 0:01:24.2]} 28. Ke2 {[%clk 0:01:10.4]} 28... Na6 {[%clk 0:01:24.1]} 29.
Nd1 {[%clk 0:00:53]} 29... c4 {[%clk 0:01:10.9]} 30. dxc4 {[%clk 0:00:45.6]}
30... Bxe4 {[%clk 0:01:10.8]} 31. Ra1 {[%clk 0:00:45.6]} 31... Bd3+ {[%clk
0:01:10.9]} 32. Ke1 {[%clk 0:00:45.9]} 32... Bxc4 {[%clk 0:01:11.1]} 33. Bc3
{[%clk 0:00:34.5]} 33... Nc5 {[%clk 0:01:06.6]} 34. Ra8+ {[%clk 0:00:28.8]}
34... Kh7 {[%clk 0:01:04.9]} 35. Nd2 {[%clk 0:00:29.3]} 35... Nd3+ {[%clk
0:01:02.7]} 36. Kf1 {[%clk 0:00:20.4]} 36... Nxb2+ {[%clk 0:00:53.9]} 37. Nxc4
{[%clk 0:00:20.8]} 37... Nxc4 {[%clk 0:00:53.3]} 38. Bxg7 {[%clk 0:00:21.1]}
38... Kxg7 {[%clk 0:00:54]} 39. Ra7 {[%clk 0:00:21.4]} 39... Kf6 {[%clk
0:00:51.3]} 40. Ke2 {[%clk 0:00:20.3]} 40... Ra3 {[%clk 0:00:48.1]} 41. Rc7
{[%clk 0:00:19.6]} 41... Ra2+ {[%clk 0:00:48.1]} 42. Kf3 {[%clk 0:00:19.7]}
42... Rd2 {[%clk 0:00:37.6]} 43. Ne3 {[%clk 0:00:14.1]} 43... Nxe3 {[%clk
0:00:30.3]} 44. Kxe3 {[%clk 0:00:15]} 44... Rd5 {[%clk 0:00:30.3]} 45. Rc3
{[%clk 0:00:15.8]} 45... Re5+ {[%clk 0:00:30.4]} 46. Kf3 {[%clk 0:00:16.5]}
46... Rf5+ {[%clk 0:00:30.7]} 47. Ke3 {[%clk 0:00:17]} 47... Rc5 {[%clk
0:00:30.8]} 48. Ra3 {[%clk 0:00:16.7]} 48... e5 {[%clk 0:00:30.7]} 49. f4 {[%clk
0:00:17]} 49... Ke6 {[%clk 0:00:28.5]} 50. fxe5 {[%clk 0:00:17.1]} 50... dxe5
{[%clk 0:00:28.2]} 51. g4 {[%clk 0:00:17.2]} 51... Rc6 {[%clk 0:00:27.9]} 52.
Ke4 {[%clk 0:00:17.5]} 52... f5+ {[%clk 0:00:27.5]} 53. gxf5+ {[%clk 0:00:18.4]}
53... gxf5+ {[%clk 0:00:28.4]} 54. Kf3 {[%clk 0:00:19.3]} 54... f4 {[%clk
0:00:27.9]} 55. Ke4 {[%clk 0:00:19.8]} 55... Rc4+ {[%clk 0:00:28.1]} 56. Kf3
{[%clk 0:00:20.7]} 56... Kf5 {[%clk 0:00:28]} 57. h4 {[%clk 0:00:19.8]} 57...
e4+ {[%clk 0:00:28.1]} 58. Kg2 {[%clk 0:00:20.3]} 58... Rc2+ {[%clk 0:00:27.4]}
59. Kh3 {[%clk 0:00:20.9]} 59... e3 {[%clk 0:00:26.2]} 60. Ra5+ {[%clk
0:00:19.5]} 60... Ke4 {[%clk 0:00:26.5]} 61. Ra8 {[%clk 0:00:20.3]} 61... Kf3
{[%clk 0:00:26.4]} 62. h5 {[%clk 0:00:20]} 62... e2 {[%clk 0:00:26.4]} 63. Re8
{[%clk 0:00:19.7]} 63... Rc1 {[%clk 0:00:26.6]} 64. Rg8 {[%clk 0:00:09.1]} 64...
Rh1# {[%clk 0:00:26]} 0-1

[Event "*** SCC Grand Prix: Titled Tuesday Blitz"]
[Site "Chess.com"]
[Date "2020.07.21"]
[Round "4"]
[White "Juanovic"]
[Black "novocane"]
[Result "0-1"]
[WhiteElo "2082"]
[BlackElo "2264"]
[TimeControl "180+1"]
[EndTime "10:39:20 PDT"]
[Termination "novocane won by checkmate"]

1. e4 {[%clk 0:03:00.9]} 1... c5 {[%clk 0:02:59.5]} 2. Nf3 {[%clk 0:03:00.6]}
2... Nc6 {[%clk 0:02:59.7]} 3. Nc3 {[%clk 0:02:57.5]} 3... e5 {[%clk 0:02:58.1]}
4. g3 {[%clk 0:02:47.4]} 4... g6 {[%clk 0:02:55.3]} 5. Bg2 {[%clk 0:02:47.6]}
5... Bg7 {[%clk 0:02:55.7]} 6. d3 {[%clk 0:02:47.7]} 6... Nge7 {[%clk
0:02:55.3]} 7. Bg5 {[%clk 0:02:45.1]} 7... f6 {[%clk 0:02:31.2]} 8. Be3 {[%clk
0:02:44.6]} 8... Nd4 {[%clk 0:02:20.5]} 9. Ne2 {[%clk 0:02:30.4]} 9... d5 {[%clk
0:02:14.5]} 10. c3 {[%clk 0:02:26.7]} 10... Nxf3+ {[%clk 0:02:00.3]} 11. Bxf3
{[%clk 0:02:27.6]} 11... d4 {[%clk 0:01:58.3]} 12. cxd4 {[%clk 0:02:25.8]} 12...
cxd4 {[%clk 0:01:57.5]} 13. Bd2 {[%clk 0:02:24.7]} 13... Bh3 {[%clk 0:01:51.4]}
14. Qb3 {[%clk 0:02:22]} 14... Qd7 {[%clk 0:01:43.1]} 15. Rc1 {[%clk 0:02:21.2]}
15... Be6 {[%clk 0:01:34.6]} 16. Qa3 {[%clk 0:02:12.3]} 16... Bh3 {[%clk
0:01:22.5]} 17. Qb3 {[%clk 0:01:47]} 17... h5 {[%clk 0:01:09.1]} 18. Bb4 {[%clk
0:01:39.4]} 18... h4 {[%clk 0:00:55.7]} 19. Rc2 {[%clk 0:01:25.8]} 19... Be6
{[%clk 0:00:49.5]} 20. Qa3 {[%clk 0:01:24.9]} 20... hxg3 {[%clk 0:00:48.4]} 21.
hxg3 {[%clk 0:01:23.7]} 21... Rxh1+ {[%clk 0:00:40.9]} 22. Bxh1 {[%clk
0:01:24.6]} 22... Nc6 {[%clk 0:00:39.9]} 23. Bd6 {[%clk 0:01:19.5]} 23... Rd8
{[%clk 0:00:32.4]} 24. Bc5 {[%clk 0:00:45.8]} 24... b6 {[%clk 0:00:18.6]} 25.
Bb4 {[%clk 0:00:45.9]} 25... a5 {[%clk 0:00:17.4]} 26. Bd2 {[%clk 0:00:43.3]}
26... Bf8 {[%clk 0:00:16.1]} 27. Qa4 {[%clk 0:00:43.5]} 27... Nb4 {[%clk
0:00:14.7]} 28. Qxd7+ {[%clk 0:00:41.8]} 28... Kxd7 {[%clk 0:00:13.4]} 29. Bxb4
{[%clk 0:00:41.9]} 29... Bxb4+ {[%clk 0:00:13.1]} 30. Kf1 {[%clk 0:00:42.4]}
30... Bxa2 {[%clk 0:00:12.7]} 31. Bf3 {[%clk 0:00:38.5]} 31... Bb3 {[%clk
0:00:09.6]} 32. Rc1 {[%clk 0:00:38]} 32... Be6 {[%clk 0:00:08.2]} 33. Kg2 {[%clk
0:00:37.5]} 33... Rc8 {[%clk 0:00:08.5]} 34. Rxc8 {[%clk 0:00:25.3]} 34... Kxc8
{[%clk 0:00:09.4]} 35. g4 {[%clk 0:00:21.9]} 35... Kd7 {[%clk 0:00:09.3]} 36.
Ng3 {[%clk 0:00:20]} 36... Kd6 {[%clk 0:00:09.6]} 37. Kf1 {[%clk 0:00:18.9]}
37... b5 {[%clk 0:00:10]} 38. Ke2 {[%clk 0:00:19.2]} 38... a4 {[%clk 0:00:10.7]}
39. Kd1 {[%clk 0:00:18.8]} 39... Kc5 {[%clk 0:00:10.8]} 40. Kc2 {[%clk
0:00:19.2]} 40... Be1 {[%clk 0:00:10.7]} 41. Nh1 {[%clk 0:00:19]} 41... b4
{[%clk 0:00:10.2]} 42. Kd1 {[%clk 0:00:17.6]} 42... Bc3 {[%clk 0:00:10.3]} 43.
bxc3 {[%clk 0:00:17.2]} 43... dxc3 {[%clk 0:00:10.7]} 44. Kc2 {[%clk 0:00:16.8]}
44... Kd4 {[%clk 0:00:10.3]} 45. Ng3 {[%clk 0:00:15]} 45... b3+ {[%clk
0:00:10.4]} 46. Kb1 {[%clk 0:00:15]} 46... Kxd3 {[%clk 0:00:10.4]} 47. Be2+
{[%clk 0:00:15.9]} 47... Kd2 {[%clk 0:00:10.7]} 48. Bb5 {[%clk 0:00:16.8]} 48...
a3 {[%clk 0:00:10.8]} 49. Nf1+ {[%clk 0:00:16]} 49... Kd1 {[%clk 0:00:10.9]} 50.
Ne3+ {[%clk 0:00:14.3]} 50... Kd2 {[%clk 0:00:10.2]} 51. Nf1+ {[%clk 0:00:14.5]}
51... Ke1 {[%clk 0:00:10]} 52. Ne3 {[%clk 0:00:14.9]} 52... a2+ {[%clk
0:00:07.1]} 53. Ka1 {[%clk 0:00:14.3]} 53... b2# {[%clk 0:00:07.4]} 0-1

[Event "*** SCC Grand Prix: Titled Tuesday Blitz"]
[Site "Chess.com"]
[Date "2020.07.21"]
[Round "4"]
[White "Gareth-Bale11"]
[Black "manmanlai1"]
[Result "1-0"]
[WhiteElo "2704"]
[BlackElo "2496"]
[TimeControl "180+1"]
[EndTime "10:39:22 PDT"]
[Termination "Gareth-Bale11 won by resignation"]

1. d4 {[%clk 0:03:00.5]} 1... d5 {[%clk 0:02:59.7]} 2. c4 {[%clk 0:02:58.5]}
2... e6 {[%clk 0:03:00.3]} 3. Nc3 {[%clk 0:02:55.5]} 3... Bb4 {[%clk 0:03:00.2]}
4. Nf3 {[%clk 0:02:48.9]} 4... Nf6 {[%clk 0:02:58.5]} 5. Bg5 {[%clk 0:02:47.1]}
5... dxc4 {[%clk 0:02:57.4]} 6. e4 {[%clk 0:02:34.3]} 6... h6 {[%clk 0:02:55]}
7. Bxf6 {[%clk 0:02:32]} 7... Qxf6 {[%clk 0:02:55.9]} 8. Bxc4 {[%clk 0:02:31.5]}
8... O-O {[%clk 0:02:54.8]} 9. O-O {[%clk 0:02:30.1]} 9... Rd8 {[%clk
0:02:54.5]} 10. Qb3 {[%clk 0:02:20.8]} 10... Ba5 {[%clk 0:02:52.5]} 11. Rad1
{[%clk 0:02:16.9]} 11... Bb6 {[%clk 0:02:50.4]} 12. d5 {[%clk 0:02:13.5]} 12...
e5 {[%clk 0:02:43.3]} 13. Na4 {[%clk 0:02:06]} 13... Bg4 {[%clk 0:02:37.1]} 14.
Be2 {[%clk 0:02:04.4]} 14... Nd7 {[%clk 0:02:20.6]} 15. h3 {[%clk 0:01:59.7]}
15... Bxf3 {[%clk 0:02:19.2]} 16. Bxf3 {[%clk 0:01:57.6]} 16... Qd6 {[%clk
0:02:15.7]} 17. Rc1 {[%clk 0:01:44.1]} 17... Nc5 {[%clk 0:01:55]} 18. Nxc5
{[%clk 0:01:42.9]} 18... Bxc5 {[%clk 0:01:55.8]} 19. Qxb7 {[%clk 0:01:36.7]}
19... Rab8 {[%clk 0:01:53.1]} 20. Qc6 {[%clk 0:01:36.5]} 20... Qxc6 {[%clk
0:01:49.1]} 21. dxc6 {[%clk 0:01:37.4]} 21... Bd4 {[%clk 0:01:47]} 22. b3 {[%clk
0:01:32.6]} 22... Rd6 {[%clk 0:01:46.5]} 23. Rc2 {[%clk 0:01:29.5]} 23... g6
{[%clk 0:01:39]} 24. h4 {[%clk 0:01:27.1]} 24... h5 {[%clk 0:01:32.1]} 25. Be2
{[%clk 0:01:26.9]} 25... Kg7 {[%clk 0:01:31.4]} 26. g3 {[%clk 0:01:21.3]} 26...
Bb6 {[%clk 0:01:26.4]} 27. Rd1 {[%clk 0:01:03.3]} 27... Rxd1+ {[%clk 0:01:24.4]}
28. Bxd1 {[%clk 0:01:04.2]} 28... Rd8 {[%clk 0:01:24.4]} 29. Bf3 {[%clk
0:01:02.8]} 29... Rd4 {[%clk 0:01:20.1]} 30. Kf1 {[%clk 0:01:00.8]} 30... Kf6
{[%clk 0:01:20.5]} 31. Ke2 {[%clk 0:00:56.4]} 31... Ke7 {[%clk 0:01:20.3]} 32.
Bg2 {[%clk 0:00:52.7]} 32... Kd6 {[%clk 0:01:20.1]} 33. Kf3 {[%clk 0:00:42.2]}
33... Rd3+ {[%clk 0:01:09]} 34. Ke2 {[%clk 0:00:42]} 34... Rd4 {[%clk
0:01:09.3]} 35. f3 {[%clk 0:00:38.2]} 35... Bc5 {[%clk 0:01:09]} 36. Bh3 {[%clk
0:00:38.2]} 36... Kxc6 {[%clk 0:01:08]} 37. Bc8 {[%clk 0:00:37.4]} 37... Kd6
{[%clk 0:00:59.3]} 38. Ba6 {[%clk 0:00:30.1]} 38... Bb6 {[%clk 0:00:58.4]} 39.
Bc4 {[%clk 0:00:28.8]} 39... Ke7 {[%clk 0:00:58.3]} 40. Bd5 {[%clk 0:00:25.9]}
40... f5 {[%clk 0:00:54.8]} 41. Rc6 {[%clk 0:00:25.6]} 41... fxe4 {[%clk
0:00:51.4]} 42. fxe4 {[%clk 0:00:23.9]} 42... Ba5 {[%clk 0:00:51.3]} 43. Rxg6
{[%clk 0:00:23.5]} 43... Rd2+ {[%clk 0:00:51]} 44. Kf3 {[%clk 0:00:24]} 44...
Rxa2 {[%clk 0:00:50.9]} 45. Rg5 {[%clk 0:00:20.7]} 45... Bc3 {[%clk 0:00:45.3]}
46. Rxh5 {[%clk 0:00:20.8]} 46... a5 {[%clk 0:00:41]} 47. Rh7+ {[%clk 0:00:21]}
47... Kd6 {[%clk 0:00:40.9]} 48. Rh6+ {[%clk 0:00:21.2]} 48... Kd7 {[%clk
0:00:40.5]} 49. g4 {[%clk 0:00:19.9]} 49... Be1 {[%clk 0:00:35.7]} 50. g5 {[%clk
0:00:19.6]} 50... Rf2+ {[%clk 0:00:35.7]} 51. Kg4 {[%clk 0:00:19.6]} 51... Rf4+
{[%clk 0:00:35.6]} 52. Kh5 {[%clk 0:00:17.5]} 52... Rxh4+ {[%clk 0:00:34]} 53.
Kg6 {[%clk 0:00:18]} 53... Ke7 {[%clk 0:00:16.3]} 54. Rh7+ {[%clk 0:00:13.8]}
54... Rxh7 {[%clk 0:00:15.8]} 55. Kxh7 {[%clk 0:00:13.9]} 55... Bh4 {[%clk
0:00:14.5]} 56. g6 {[%clk 0:00:14.2]} 56... Bf6 {[%clk 0:00:14.8]} 57. g7 {[%clk
0:00:14.7]} 57... Bxg7 {[%clk 0:00:15.1]} 58. Kxg7 {[%clk 0:00:15.6]} 58... Kd6
{[%clk 0:00:15.2]} 59. Kf6 {[%clk 0:00:15.5]} 59... c6 {[%clk 0:00:15.6]} 60.
Bg8 {[%clk 0:00:15.8]} 1-0

[Event "*** SCC Grand Prix: Titled Tuesday Blitz"]
[Site "Chess.com"]
[Date "2020.07.21"]
[Round "4"]
[White "rasmussvane"]
[Black "White_Ghost"]
[Result "1-0"]
[WhiteElo "2887"]
[BlackElo "2541"]
[TimeControl "180+1"]
[EndTime "10:39:24 PDT"]
[Termination "rasmussvane won by checkmate"]

1. Nf3 {[%clk 0:03:00.9]} 1... d5 {[%clk 0:02:58.5]} 2. g3 {[%clk 0:03:01]} 2...
Nf6 {[%clk 0:02:53.2]} 3. Bg2 {[%clk 0:03:00.8]} 3... Bg4 {[%clk 0:02:52.9]} 4.
O-O {[%clk 0:03:00.2]} 4... e6 {[%clk 0:02:51.9]} 5. h3 {[%clk 0:03:00.7]} 5...
Bh5 {[%clk 0:02:51]} 6. d4 {[%clk 0:03:01]} 6... c6 {[%clk 0:02:45.8]} 7. c4
{[%clk 0:03:00.8]} 7... Be7 {[%clk 0:02:44.8]} 8. cxd5 {[%clk 0:02:53.6]} 8...
cxd5 {[%clk 0:02:38.3]} 9. Qb3 {[%clk 0:02:53.4]} 9... Qb6 {[%clk 0:02:33.6]}
10. Nc3 {[%clk 0:02:52.5]} 10... Bxf3 {[%clk 0:02:32.9]} 11. Bxf3 {[%clk
0:02:52.1]} 11... Nc6 {[%clk 0:02:33.3]} 12. e3 {[%clk 0:01:55.8]} 12... Qxb3
{[%clk 0:02:24.3]} 13. axb3 {[%clk 0:01:56.7]} 13... Nd7 {[%clk 0:02:20.9]} 14.
Bd2 {[%clk 0:01:56.2]} 14... Bd6 {[%clk 0:02:11]} 15. Rfc1 {[%clk 0:01:55.2]}
15... Ke7 {[%clk 0:02:10.5]} 16. Nb5 {[%clk 0:01:07.5]} 16... Rhc8 {[%clk
0:02:01.7]} 17. Nxd6 {[%clk 0:01:07.4]} 17... Kxd6 {[%clk 0:02:00.4]} 18. Be2
{[%clk 0:01:08]} 18... a6 {[%clk 0:01:59.4]} 19. f3 {[%clk 0:01:07.1]} 19... h5
{[%clk 0:01:42.1]} 20. Kf2 {[%clk 0:01:07.1]} 20... g6 {[%clk 0:01:41.6]} 21.
Bc3 {[%clk 0:01:06]} 21... Rcb8 {[%clk 0:01:23.1]} 22. e4 {[%clk 0:01:01.5]}
22... Rc8 {[%clk 0:01:12.7]} 23. Ke3 {[%clk 0:01:00.6]} 23... Rd8 {[%clk
0:01:10.9]} 24. Bd3 {[%clk 0:01:00.5]} 24... Rdc8 {[%clk 0:01:08.2]} 25. Rc2
{[%clk 0:00:58.1]} 25... b5 {[%clk 0:00:42.6]} 26. Rac1 {[%clk 0:00:57]} 26...
Nb6 {[%clk 0:00:32.6]} 27. Bd2 {[%clk 0:00:55.2]} 27... Kd7 {[%clk 0:00:28.2]}
28. Rc5 {[%clk 0:00:52.9]} 28... Rc7 {[%clk 0:00:20.6]} 29. Ba5 {[%clk
0:00:49.9]} 29... Rb8 {[%clk 0:00:18.9]} 30. Bxb6 {[%clk 0:00:41.1]} 30... Rxb6
{[%clk 0:00:18.9]} 31. exd5 {[%clk 0:00:41.7]} 31... exd5 {[%clk 0:00:18.9]} 32.
Rxd5+ {[%clk 0:00:42.6]} 32... Ke6 {[%clk 0:00:19]} 33. Rdc5 {[%clk 0:00:41.1]}
33... Kd6 {[%clk 0:00:19.5]} 34. Be4 {[%clk 0:00:38.5]} 34... f5 {[%clk
0:00:14.7]} 35. Bxc6 {[%clk 0:00:34.9]} 35... Rbxc6 {[%clk 0:00:15.6]} 36. Rxc6+
{[%clk 0:00:27.1]} 36... Rxc6 {[%clk 0:00:16.5]} 37. Rxc6+ {[%clk 0:00:22.4]}
37... Kxc6 {[%clk 0:00:17.4]} 38. g4 {[%clk 0:00:19.3]} 38... hxg4 {[%clk
0:00:14.9]} 39. fxg4 {[%clk 0:00:16.3]} 39... Kd5 {[%clk 0:00:15.8]} 40. gxf5
{[%clk 0:00:15.8]} 40... gxf5 {[%clk 0:00:15.7]} 41. h4 {[%clk 0:00:16]} 41...
f4+ {[%clk 0:00:13.5]} 42. Kxf4 {[%clk 0:00:16.1]} 42... Kxd4 {[%clk 0:00:13.7]}
43. h5 {[%clk 0:00:16.1]} 43... Kd3 {[%clk 0:00:14.1]} 44. h6 {[%clk 0:00:16.6]}
44... Kc2 {[%clk 0:00:15]} 45. h7 {[%clk 0:00:17.2]} 45... Kxb3 {[%clk
0:00:15.4]} 46. h8=Q {[%clk 0:00:17.5]} 46... b4 {[%clk 0:00:16.2]} 47. Qe5
{[%clk 0:00:16.7]} 47... a5 {[%clk 0:00:15.4]} 48. Qxa5 {[%clk 0:00:16]} 48...
Kxb2 {[%clk 0:00:15.8]} 49. Qxb4+ {[%clk 0:00:16.2]} 49... Kc2 {[%clk
0:00:16.4]} 50. Qd4 {[%clk 0:00:15.8]} 50... Kb3 {[%clk 0:00:16.4]} 51. Qc5
{[%clk 0:00:10.2]} 51... Ka4 {[%clk 0:00:16.3]} 52. Qb6 {[%clk 0:00:09.9]} 52...
Ka3 {[%clk 0:00:16.5]} 53. Ke3 {[%clk 0:00:09.7]} 53... Ka4 {[%clk 0:00:16.4]}
54. Kd4 {[%clk 0:00:09.6]} 54... Ka3 {[%clk 0:00:16.8]} 55. Kc3 {[%clk
0:00:09.9]} 55... Ka2 {[%clk 0:00:17.7]} 56. Qb5 {[%clk 0:00:09.4]} 56... Ka1
{[%clk 0:00:16.6]} 57. Kc2 {[%clk 0:00:09.2]} 57... Ka2 {[%clk 0:00:16.5]} 58.
Qb7 {[%clk 0:00:09.3]} 58... Ka3 {[%clk 0:00:16.6]} 59. Qb3# {[%clk 0:00:06]}
1-0

[Event "*** SCC Grand Prix: Titled Tuesday Blitz"]
[Site "Chess.com"]
[Date "2020.07.21"]
[Round "4"]
[White "maiconramazzotte99"]
[Black "Rap_woyska"]
[Result "0-1"]
[WhiteElo "1759"]
[BlackElo "2369"]
[TimeControl "180+1"]
[EndTime "10:39:24 PDT"]
[Termination "Rap_woyska won by checkmate"]

1. e4 {[%clk 0:02:52]} 1... c5 {[%clk 0:02:59.6]} 2. Nf3 {[%clk 0:02:51.8]} 2...
e6 {[%clk 0:03:00.2]} 3. d4 {[%clk 0:02:51.3]} 3... cxd4 {[%clk 0:03:01.1]} 4.
Nxd4 {[%clk 0:02:50.4]} 4... Nc6 {[%clk 0:03:01.8]} 5. Nc3 {[%clk 0:02:48.8]}
5... Qc7 {[%clk 0:03:01.7]} 6. Be3 {[%clk 0:02:48.4]} 6... a6 {[%clk 0:03:02]}
7. Be2 {[%clk 0:02:47.5]} 7... Nf6 {[%clk 0:03:02.3]} 8. f3 {[%clk 0:02:46.3]}
8... Be7 {[%clk 0:03:00.8]} 9. a4 {[%clk 0:02:44.2]} 9... Nxd4 {[%clk
0:02:58.8]} 10. Bxd4 {[%clk 0:02:39.7]} 10... d6 {[%clk 0:02:59.7]} 11. a5
{[%clk 0:02:38]} 11... O-O {[%clk 0:02:59.4]} 12. Bb6 {[%clk 0:02:37.6]} 12...
Qc6 {[%clk 0:02:53.7]} 13. O-O {[%clk 0:02:36.9]} 13... Bd8 {[%clk 0:02:48]} 14.
Bxd8 {[%clk 0:02:34]} 14... Rxd8 {[%clk 0:02:48.9]} 15. Qe1 {[%clk 0:02:31.1]}
15... b5 {[%clk 0:02:44.7]} 16. axb6 {[%clk 0:02:18.9]} 16... Qxb6+ {[%clk
0:02:44.5]} 17. Kh1 {[%clk 0:02:16.5]} 17... Qxb2 {[%clk 0:02:44.5]} 18. Rb1
{[%clk 0:02:16]} 18... Qa3 {[%clk 0:02:44.5]} 19. Rb3 {[%clk 0:02:14.2]} 19...
Qc5 {[%clk 0:02:43.3]} 20. Na4 {[%clk 0:02:11.4]} 20... Qc6 {[%clk 0:02:40.7]}
21. Qa5 {[%clk 0:02:09.8]} 21... Bd7 {[%clk 0:02:37.2]} 22. Nb6 {[%clk
0:02:07.4]} 22... Qc7 {[%clk 0:02:33.3]} 23. Rfb1 {[%clk 0:02:01.2]} 23... Be8
{[%clk 0:02:26.3]} 24. Qd2 {[%clk 0:01:56.5]} 24... Rab8 {[%clk 0:02:24.6]} 25.
Bxa6 {[%clk 0:01:54.3]} 25... d5 {[%clk 0:02:12.8]} 26. exd5 {[%clk 0:01:46.3]}
26... Nxd5 {[%clk 0:02:12.2]} 27. Nxd5 {[%clk 0:01:43.5]} 27... Rxb3 {[%clk
0:02:11.3]} 28. Rxb3 {[%clk 0:01:39.5]} 28... Rxd5 {[%clk 0:02:11.2]} 29. Bd3
{[%clk 0:01:28.3]} 29... g6 {[%clk 0:01:51.8]} 30. h3 {[%clk 0:01:17.6]} 30...
Qe5 {[%clk 0:00:59]} 31. Qc1 {[%clk 0:01:02.2]} 31... Ra5 {[%clk 0:00:47.4]} 32.
Rb1 {[%clk 0:00:42.9]} 32... Bc6 {[%clk 0:00:47.4]} 33. Qb2 {[%clk 0:00:35.1]}
33... Qc5 {[%clk 0:00:23.6]} 34. Qf6 {[%clk 0:00:28.8]} 34... Ra8 {[%clk
0:00:19.1]} 35. Qf4 {[%clk 0:00:26.9]} 35... Kg7 {[%clk 0:00:17.3]} 36. Kh2
{[%clk 0:00:24.3]} 36... e5 {[%clk 0:00:17]} 37. Qd2 {[%clk 0:00:22.2]} 37...
Qd5 {[%clk 0:00:14.6]} 38. Rd1 {[%clk 0:00:19.2]} 38... Qe6 {[%clk 0:00:14.2]}
39. Qe3 {[%clk 0:00:17.5]} 39... Rd8 {[%clk 0:00:13.5]} 40. Be2 {[%clk 0:00:17]}
40... Rxd1 {[%clk 0:00:11.7]} 41. Bxd1 {[%clk 0:00:17.9]} 41... e4 {[%clk
0:00:11.4]} 42. fxe4 {[%clk 0:00:15.4]} 42... Qd6+ {[%clk 0:00:11.6]} 43. e5
{[%clk 0:00:15.1]} 43... Qxd1 {[%clk 0:00:11.3]} 44. e6 {[%clk 0:00:15.2]} 44...
Qd6+ {[%clk 0:00:10.9]} 45. g3 {[%clk 0:00:14]} 45... Qxe6 {[%clk 0:00:11.4]}
46. Qc3+ {[%clk 0:00:12.9]} 46... Qf6 {[%clk 0:00:11.7]} 47. Qd3 {[%clk
0:00:12.1]} 47... h5 {[%clk 0:00:12.2]} 48. c3 {[%clk 0:00:12.2]} 48... Qf3
{[%clk 0:00:12.2]} 49. Qd4+ {[%clk 0:00:11.7]} 49... f6 {[%clk 0:00:11.5]} 50.
Qa7+ {[%clk 0:00:11]} 50... Kh6 {[%clk 0:00:12]} 51. Qg1 {[%clk 0:00:07.9]}
51... Qxc3 {[%clk 0:00:11.9]} 52. g4 {[%clk 0:00:07.5]} 52... Qd2+ {[%clk
0:00:10.3]} 53. Kg3 {[%clk 0:00:04.4]} 53... g5 {[%clk 0:00:07.6]} 54. gxh5
{[%clk 0:00:03.9]} 54... Qf4# {[%clk 0:00:07.7]} 0-1